[Event "Senior Men Russian Championship 2022_1L"]
[Site "Olginka, Russia"]
[Date "2022.09.30"]
[Round "7.6"]
[White "Rakov, Anatoly"]
[Black "Dmitriev, Igor"]
[Result "0-1"]
[TimeControl "90min/40moves+30min/end+30sec increment per move starting from move 1"]
[BlackTitle "IM"]
[WhiteFideId "4178793"]
[BlackFideId "4114833"]
[WhiteElo "1877"]
[BlackElo "2174"]

1. d4 {[%clk 01:30:57]} {[%emt 00:00:02]} a6 {[%clk 01:22:36]} {[%emt
00:08:25]} 2. a4 {[%clk 01:30:45]} {[%emt 00:00:42]} d5 {[%clk 01:20:56]}
{[%emt 00:02:09]} 3. Bf4 {[%clk 01:30:58]} {[%emt 00:00:16]} Bg4 {[%clk
01:20:38]} {[%emt 00:00:48]} 4. h3 {[%clk 01:30:59]} {[%emt 00:00:30]} Bh5
{[%clk 01:20:53]} {[%emt 00:00:14]} 5. c3 {[%clk 01:31:04]} {[%emt 00:00:26]}
Nc6 {[%clk 01:20:52]} {[%emt 00:00:31]} 6. Nd2 {[%clk 01:30:39]} {[%emt
00:00:55]} e6 {[%clk 01:20:57]} {[%emt 00:00:26]} 7. Ngf3 {[%clk 01:30:03]}
{[%emt 00:01:06]} Bd6 {[%clk 01:18:54]} {[%emt 00:02:32]} 8. e3 {[%clk
01:09:00]} {[%emt 00:21:33]} Bxf4 {[%clk 01:16:35]} {[%emt 00:02:49]} 9. exf4
{[%clk 01:09:28]} {[%emt 00:00:01]} Qd6 {[%clk 01:12:15]} {[%emt 00:04:50]} 10.
g4 {[%clk 01:08:22]} {[%emt 00:01:36]} Bg6 {[%clk 01:12:32]} {[%emt 00:00:13]}
11. Ne5 {[%clk 01:08:02]} {[%emt 00:00:51]} Nge7 {[%clk 01:12:35]} {[%emt
00:00:25]} 12. Qf3 {[%clk 00:56:32]} {[%emt 00:12:01]} f6 {[%clk 01:11:22]}
{[%emt 00:01:43]} 13. Nxg6 {[%clk 00:51:31]} {[%emt 00:05:31]} Nxg6 {[%clk
01:08:32]} {[%emt 00:03:20]} 14. f5 {[%clk 00:50:21]} {[%emt 00:01:41]} Nf4
{[%clk 01:08:42]} {[%emt 00:00:19]} 15. fxe6 {[%clk 00:49:49]} {[%emt
00:01:03]} O-O {[%clk 01:01:45]} {[%emt 00:07:27]} 16. O-O-O {[%clk 00:43:41]}
{[%emt 00:06:38]} Rfe8 {[%clk 01:00:01]} {[%emt 00:02:14]} 17. Re1 {[%clk
00:42:29]} {[%emt 00:01:43]} Nd8 {[%clk 00:59:46]} {[%emt 00:00:45]} 18. e7
{[%clk 00:35:54]} {[%emt 00:07:06]} Nde6 {[%clk 00:58:13]} {[%emt 00:02:02]} 19.
h4 {[%clk 00:34:50]} {[%emt 00:01:33]} Rxe7 {[%clk 00:58:25]} {[%emt 00:00:18]}
20. Bd3 {[%clk 00:34:47]} {[%emt 00:00:34]} b5 {[%clk 00:49:17]} {[%emt
00:09:38]} 21. Bc2 {[%clk 00:27:57]} {[%emt 00:07:21]} Rae8 {[%clk 00:33:19]}
{[%emt 00:16:27]} 22. Re3 {[%clk 00:26:47]} {[%emt 00:01:40]} b4 {[%clk
00:33:40]} {[%emt 00:00:10]} 23. Nb3 {[%clk 00:23:37]} {[%emt 00:03:40]} bxc3
{[%clk 00:33:48]} {[%emt 00:00:22]} 24. Rxc3 {[%clk 00:23:37]} {[%emt
00:00:30]} Qb4 {[%clk 00:33:18]} {[%emt 00:00:59]} 25. Re3 {[%clk 00:11:43]}
{[%emt 00:12:25]} Nxd4 {[%clk 00:30:49]} {[%emt 00:02:59]} 26. Nxd4 {[%clk
00:11:11]} {[%emt 00:01:02]} Qxd4 {[%clk 00:31:11]} {[%emt 00:00:08]} 27. Rxe7
{[%clk 00:10:14]} {[%emt 00:01:28]} Rxe7 {[%clk 00:31:31]} {[%emt 00:00:09]} 28.
g5 {[%clk 00:10:32]} {[%emt 00:00:12]} Re2 {[%clk 00:30:32]} {[%emt 00:01:28]}
29. Qb3 {[%clk 00:09:20]} {[%emt 00:01:43]} Qb6 {[%clk 00:28:52]} {[%emt
00:02:08]} 30. Qxb6 {[%clk 00:06:41]} {[%emt 00:03:11]} cxb6 {[%clk 00:29:14]}
{[%emt 00:00:09]} 31. gxf6 {[%clk 00:07:09]} {[%emt 00:00:02]} gxf6 {[%clk
00:29:23]} {[%emt 00:00:20]} 32. Rh2 {[%clk 00:05:19]} {[%emt 00:02:20]} h6
{[%clk 00:28:20]} {[%emt 00:01:33]} 33. Kd1 {[%clk 00:05:48]} {[%emt 00:00:02]}
a5 {[%clk 00:27:55]} {[%emt 00:00:54]} 34. b3 {[%clk 00:04:33]} {[%emt
00:01:45]} Kf7 {[%clk 00:28:06]} {[%emt 00:00:18]} 35. Bd3 {[%clk 00:04:27]}
{[%emt 00:00:36]} Re5 {[%clk 00:24:23]} {[%emt 00:04:13]} 36. Bb5 {[%clk
00:04:55]} {[%emt 00:00:04]} Ke6 {[%clk 00:24:29]} {[%emt 00:00:23]} 37. Kd2
{[%clk 00:05:08]} {[%emt 00:00:17]} Kd6 {[%clk 00:21:34]} {[%emt 00:03:24]} 38.
Rh1 {[%clk 00:05:13]} {[%emt 00:00:26]} Ne6 {[%clk 00:21:52]} {[%emt 00:00:11]}
39. Kc3 {[%clk 00:01:22]} {[%emt 00:04:22]} Rf5 {[%clk 00:21:59]} {[%emt
00:00:23]} 40. Rf1 {[%clk 00:31:03]} {[%emt 00:00:50]} Rf3+ {[%clk 00:52:00]}
{[%emt 00:00:28]} 41. Kd2 {[%clk 00:27:46]} {[%emt 00:03:48]} Nd4 {[%clk
00:51:47]} {[%emt 00:00:43]} 42. Be8 {[%clk 00:27:21]} {[%emt 00:00:55]} Nxb3+
{[%clk 00:52:04]} {[%emt 00:00:13]} 43. Ke2 {[%clk 00:27:43]} {[%emt 00:00:08]}
Nd4+ {[%clk 00:52:26]} {[%emt 00:00:08]} 44. Kd2 {[%clk 00:28:13]} Rf4 {[%clk
00:52:37]} {[%emt 00:00:19]} 45. h5 {[%clk 00:28:30]} {[%emt 00:00:14]} Nb3+
{[%clk 00:52:30]} {[%emt 00:00:36]} 46. Kc2 {[%clk 00:25:07]} {[%emt 00:03:54]}
Nc5 {[%clk 00:52:53]} {[%emt 00:00:07]} 47. f3 {[%clk 00:21:22]} {[%emt
00:04:15]} d4 {[%clk 00:52:10]} {[%emt 00:01:13]} 48. Rb1 {[%clk 00:21:14]}
{[%emt 00:00:38]} Kc7 {[%clk 00:52:22]} {[%emt 00:00:17]} 49. Rd1 {[%clk
00:20:57]} {[%emt 00:00:47]} d3+ {[%clk 00:52:45]} {[%emt 00:00:08]} 50. Kd2
{[%clk 00:20:47]} {[%emt 00:00:40]} Rxf3 {[%clk 00:53:07]} {[%emt 00:00:08]} 51.
Bg6 {[%clk 00:20:39]} {[%emt 00:00:38]} f5 {[%clk 00:53:26]} {[%emt 00:00:11]}
52. Rc1 {[%clk 00:20:16]} {[%emt 00:00:53]} Kd6 {[%clk 00:53:42]} {[%emt
00:00:13]} 53. Bf7 {[%clk 00:20:18]} {[%emt 00:00:29]} Ne4+ {[%clk 00:53:59]}
{[%emt 00:00:12]} 0-1

[Event "Senior Men Russian Championship 2022_1L"]
[Site "Olginka, Russia"]
[Date "2022.09.30"]
[Round "7.7"]
[White "Birjukov, Sergey"]
[Black "Bebchuk, Boris"]
[Result "1-0"]
[TimeControl "90min/40moves+30min/end+30sec increment per move starting from move 1"]
[WhiteTitle "FM"]
[WhiteElo "1867"]
[BlackElo "2089"]

1. d4 {[%clk 01:30:57]} Nf6 {[%clk 01:30:53]} 2. Nf3 e6 3. Bg5 {[%clk
01:30:57]} b6 {[%clk 01:30:53]} 4. e3 {[%clk 01:30:57]} Bb7 {[%clk 01:30:53]} 5.
Nbd2 {[%clk 01:30:57]} Be7 {[%clk 01:30:53]} 6. c3 {[%clk 01:30:57]} d5 {[%clk
01:30:53]} 7. Bd3 {[%clk 01:30:57]} Nbd7 {[%clk 01:30:53]} 8. O-O {[%clk
01:30:57]} O-O {[%clk 01:30:53]} 9. a4 {[%clk 01:30:57]} c5 {[%clk 01:30:53]}
10. Qe2 {[%clk 01:30:57]} a6 {[%clk 01:30:53]} 11. Rfd1 {[%clk 01:30:57]} c4
{[%clk 01:30:53]} 12. Bc2 {[%clk 01:30:57]} b5 {[%clk 01:30:53]} 13. h3 {[%clk
01:30:57]} b4 {[%clk 01:30:53]} 14. cxb4 {[%clk 01:30:57]} Bxb4 {[%clk
01:30:53]} 15. e4 {[%clk 01:30:57]} dxe4 {[%clk 01:30:53]} 16. Nxe4 {[%clk
01:30:57]} Rc8 {[%clk 01:30:53]} 17. Ne5 {[%clk 01:30:57]} Be7 {[%clk
01:30:53]} 18. Nxd7 {[%clk 01:30:57]} Nxd7 {[%clk 01:30:53]} 19. Bf4 {[%clk
01:30:57]} Nf6 {[%clk 01:30:53]} 20. Nc5 {[%clk 01:30:57]} Qd5 {[%clk
01:30:53]} 21. Nxb7 {[%clk 01:30:57]} Qxb7 {[%clk 01:30:53]} 22. Rac1 {[%clk
01:30:57]} Rfd8 {[%clk 01:30:53]} 23. Be5 {[%clk 01:30:57]} Qb4 {[%clk
01:30:53]} 24. Rd2 {[%clk 01:30:57]} Rd5 {[%clk 01:30:53]} 25. Bd3 {[%clk
01:30:57]} Qxa4 {[%clk 01:30:53]} 26. Rxc4 {[%clk 01:30:57]} Rxc4 {[%clk
01:30:53]} 27. Bxc4 {[%clk 01:30:57]} Ra5 {[%clk 01:30:53]} 28. Bc7 {[%clk
01:30:57]} Rf5 {[%clk 01:30:53]} 29. Bxe6 {[%clk 01:30:57]} Rg5 {[%clk
01:30:53]} 30. f4 {[%clk 01:30:57]} Rxg2+ {[%clk 01:30:53]} 31. Qxg2 {[%clk
01:30:57]} fxe6 {[%clk 01:30:53]} 32. Be5 {[%clk 01:30:57]} Qc4 {[%clk
01:30:53]} 33. Rc2 {[%clk 01:30:57]} Qd3 {[%clk 01:30:53]} 34. Rc7 {[%clk
01:30:57]} Kf7 {[%clk 01:30:53]} 35. Rxe7+ {[%clk 01:30:57]} Kxe7 {[%clk
01:30:53]} 36. Qxg7+ {[%clk 01:30:57]} Ke8 {[%clk 01:30:53]} 37. Bxf6 {[%clk
01:30:57]} Qe3+ {[%clk 01:30:53]} 38. Kg2 {[%clk 01:30:57]} Qe2+ {[%clk
01:30:53]} 39. Kg3 {[%clk 01:30:57]} Qe3+ {[%clk 01:30:53]} 40. Kg4 {[%clk
01:30:57]} h5+ {[%clk 01:30:53]} 41. Kg5 {[%clk 01:30:57]} Qg3+ {[%clk
01:30:53]} 42. Kh6 {[%clk 01:30:57]} Qxf4+ {[%clk 01:30:53]} 43. Kh7 {[%clk
01:30:57]} Qd6 {[%clk 01:30:53]} 44. Kg8 {[%clk 01:30:57]} a5 {[%clk 01:30:53]}
45. Qf7# {[%clk 01:30:57]} 1-0

[Event "Senior Men Russian Championship 2022_1L"]
[Site "Olginka, Russia"]
[Date "2022.09.30"]
[Round "7.8"]
[White "Sluzhilov, Aleksandr"]
[Black "Kiriushin, Vladimir"]
[Result "1-0"]
[TimeControl "90min/40moves+30min/end+30sec increment per move starting from move 1"]
[WhiteFideId "24152501"]
[BlackFideId "4150848"]
[WhiteElo "1795"]
[BlackElo "1954"]

1. Nf3 {[%clk 01:30:32]} {[%emt 00:00:27]} d5 {[%clk 01:30:51]} {[%emt
00:00:09]} 2. e3 {[%clk 01:30:51]} {[%emt 00:00:11]} Nf6 {[%clk 01:30:48]}
{[%emt 00:00:33]} 3. b3 {[%clk 01:31:08]} {[%emt 00:00:13]} Bg4 {[%clk
01:30:50]} {[%emt 00:00:27]} 4. Bb2 {[%clk 01:31:06]} {[%emt 00:00:32]} Nbd7
{[%clk 01:31:09]} {[%emt 00:00:11]} 5. Be2 {[%clk 01:30:25]} {[%emt 00:01:11]}
e6 {[%clk 01:31:26]} {[%emt 00:00:12]} 6. c4 {[%clk 01:27:38]} {[%emt
00:03:17]} c6 {[%clk 01:29:09]} {[%emt 00:02:47]} 7. h3 {[%clk 01:27:26]}
{[%emt 00:00:42]} Bh5 {[%clk 01:29:31]} {[%emt 00:00:07]} 8. d4 {[%clk
01:21:48]} {[%emt 00:06:09]} Bb4+ {[%clk 01:27:11]} {[%emt 00:02:51]} 9. Bc3
{[%clk 01:18:40]} {[%emt 00:03:39]} Be7 {[%clk 01:22:32]} {[%emt 00:05:08]} 10.
Nbd2 {[%clk 01:17:42]} {[%emt 00:01:28]} Bg6 {[%clk 01:21:48]} {[%emt
00:01:15]} 11. O-O {[%clk 01:16:11]} {[%emt 00:02:01]} Qc7 {[%clk 01:20:42]}
{[%emt 00:01:35]} 12. Ne5 {[%clk 00:58:40]} {[%emt 00:18:03]} Nxe5 {[%clk
01:21:01]} {[%emt 00:00:11]} 13. dxe5 {[%clk 00:59:08]} {[%emt 00:00:02]} Nd7
{[%clk 01:18:48]} {[%emt 00:02:42]} 14. cxd5 {[%clk 00:52:13]} {[%emt
00:07:26]} cxd5 {[%clk 01:18:42]} {[%emt 00:00:36]} 15. Rc1 {[%clk 00:52:26]}
{[%emt 00:00:17]} Qd8 {[%clk 01:15:59]} {[%emt 00:03:13]} 16. Nf3 {[%clk
00:41:46]} {[%emt 00:11:11]} Ba3 {[%clk 01:16:07]} {[%emt 00:00:21]} 17. Ra1
{[%clk 00:42:14]} {[%emt 00:00:02]} Rc8 {[%clk 01:14:48]} {[%emt 00:01:49]} 18.
Qe1 {[%clk 00:40:08]} {[%emt 00:02:36]} O-O {[%clk 01:14:45]} {[%emt 00:00:33]}
19. Bb4 {[%clk 00:40:08]} {[%emt 00:00:30]} Bxb4 {[%clk 01:05:11]} {[%emt
00:10:04]} 20. Qxb4 {[%clk 00:40:31]} {[%emt 00:00:07]} Rc2 {[%clk 01:03:19]}
{[%emt 00:02:21]} 21. Nd4 {[%clk 00:39:06]} {[%emt 00:01:55]} Rc8 {[%clk
00:49:22]} {[%emt 00:14:28]} 22. f4 {[%clk 00:34:59]} {[%emt 00:04:37]} Nc5
{[%clk 00:46:19]} {[%emt 00:03:33]} 23. Rac1 {[%clk 00:28:44]} {[%emt
00:06:45]} b6 {[%clk 00:44:45]} {[%emt 00:02:06]} 24. Qa3 {[%clk 00:27:50]}
{[%emt 00:01:23]} a5 {[%clk 00:37:43]} {[%emt 00:07:32]} 25. Qb2 {[%clk
00:25:39]} {[%emt 00:02:42]} f6 {[%clk 00:33:53]} {[%emt 00:04:19]} 26. Rxc5
{[%clk 00:24:08]} {[%emt 00:02:01]} bxc5 {[%clk 00:25:29]} {[%emt 00:08:54]} 27.
Nxe6 {[%clk 00:24:13]} {[%emt 00:00:25]} Qe7 {[%clk 00:25:38]} {[%emt
00:00:21]} 28. Nxf8 {[%clk 00:24:32]} {[%emt 00:00:11]} Rxf8 {[%clk 00:25:57]}
{[%emt 00:00:10]} 29. f5 {[%clk 00:24:05]} {[%emt 00:00:57]} Be8 {[%clk
00:25:47]} {[%emt 00:00:40]} 30. e6 {[%clk 00:24:12]} {[%emt 00:00:24]} Qd6
{[%clk 00:24:00]} {[%emt 00:02:17]} 31. Qc3 {[%clk 00:22:29]} {[%emt 00:02:13]}
g6 {[%clk 00:14:16]} {[%emt 00:10:15]} 32. fxg6 {[%clk 00:21:59]} {[%emt
00:01:00]} Bxg6 {[%clk 00:14:07]} {[%emt 00:00:40]} 33. Rxf6 {[%clk 00:22:00]}
{[%emt 00:00:28]} d4 {[%clk 00:14:18]} {[%emt 00:00:19]} 34. Rxf8+ {[%clk
00:22:19]} {[%emt 00:00:11]} Kxf8 {[%clk 00:14:19]} {[%emt 00:00:30]} 35. exd4
{[%clk 00:22:16]} {[%emt 00:00:33]} cxd4 {[%clk 00:14:29]} {[%emt 00:00:20]} 36.
Qc8+ {[%clk 00:14:08]} {[%emt 00:08:38]} Ke7 {[%clk 00:14:57]} {[%emt
00:00:02]} 37. Bd1 {[%clk 00:11:03]} {[%emt 00:03:35]} d3 {[%clk 00:14:15]}
{[%emt 00:01:12]} 38. Qd7+ {[%clk 00:10:58]} {[%emt 00:00:35]} Qxd7 {[%clk
00:14:40]} {[%emt 00:00:05]} 39. exd7 {[%clk 00:11:22]} {[%emt 00:00:06]} Kxd7
{[%clk 00:14:57]} {[%emt 00:00:13]} 40. Kf2 {[%clk 00:41:31]} {[%emt 00:00:21]}
Kd6 {[%clk 00:44:57]} {[%emt 00:00:30]} 41. Ke3 {[%clk 00:41:48]} {[%emt
00:00:13]} Kc5 {[%clk 00:45:20]} {[%emt 00:00:07]} 42. a3 {[%clk 00:41:53]}
{[%emt 00:00:26]} h6 {[%clk 00:45:25]} {[%emt 00:00:25]} 43. g4 {[%clk
00:41:11]} {[%emt 00:01:12]} Bh7 {[%clk 00:44:32]} {[%emt 00:01:23]} 44. h4
{[%clk 00:40:27]} {[%emt 00:01:13]} Bg6 {[%clk 00:44:22]} {[%emt 00:00:41]} 45.
g5 {[%clk 00:37:57]} {[%emt 00:03:00]} hxg5 {[%clk 00:44:20]} {[%emt 00:00:32]}
46. hxg5 {[%clk 00:38:25]} {[%emt 00:00:01]} Bf5 {[%clk 00:44:29]} {[%emt
00:00:22]} 47. Kf4 {[%clk 00:38:33]} {[%emt 00:00:22]} Bg6 {[%clk 00:44:40]}
{[%emt 00:00:19]} 48. Ke5 {[%clk 00:38:48]} {[%emt 00:00:15]} d2 {[%clk
00:44:16]} {[%emt 00:00:54]} 49. Kf6 {[%clk 00:39:08]} {[%emt 00:00:10]} Be4
{[%clk 00:44:21]} {[%emt 00:00:26]} 50. g6 {[%clk 00:39:07]} {[%emt 00:00:31]}
Kd4 {[%clk 00:43:54]} {[%emt 00:00:57]} 51. g7 {[%clk 00:38:44]} {[%emt
00:00:53]} Bd5 {[%clk 00:44:17]} {[%emt 00:00:07]} 52. Ke7 {[%clk 00:38:56]}
{[%emt 00:00:18]} Kc3 {[%clk 00:44:43]} {[%emt 00:00:03]} 53. Kf8 {[%clk
00:38:24]} {[%emt 00:01:03]} Kb2 {[%clk 00:44:56]} {[%emt 00:00:17]} 54. b4
{[%clk 00:37:12]} {[%emt 00:01:42]} a4 {[%clk 00:39:38]} {[%emt 00:05:48]} 55.
b5 {[%clk 00:36:08]} {[%emt 00:01:34]} Kxa3 {[%clk 00:39:19]} {[%emt 00:00:49]}
56. b6 {[%clk 00:36:10]} {[%emt 00:00:29]} Kb4 {[%clk 00:36:57]} {[%emt
00:02:52]} 57. g8=Q {[%clk 00:36:06]} {[%emt 00:00:33]} Bxg8 {[%clk 00:36:34]}
{[%emt 00:00:52]} 58. Kxg8 {[%clk 00:36:34]} {[%emt 00:00:02]} a3 {[%clk
00:34:39]} {[%emt 00:02:26]} 59. b7 {[%clk 00:37:02]} {[%emt 00:00:02]} a2
{[%clk 00:34:07]} {[%emt 00:01:01]} 60. b8=Q+ {[%clk 00:37:24]} {[%emt
00:00:07]} 1-0

[Event "Senior Men Russian Championship 2022_1L"]
[Site "Olginka, Russia"]
[Date "2022.10.01"]
[Round "8.1"]
[White "Kurdakov, Yuri"]
[Black "Rodin, Mihail"]
[Result "1/2-1/2"]
[TimeControl "90min/40moves+30min/end+30sec increment per move starting from move 1"]
[WhiteTitle "FM"]
[WhiteFideId "4120493"]
[BlackFideId "4113160"]
[WhiteElo "2085"]
[BlackElo "2320"]

1. c4 {[%clk 01:30:56]} {[%emt 00:00:03]} e6 {[%clk 01:30:58]} {[%emt
00:00:03]} 2. Nf3 {[%clk 01:29:37]} {[%emt 00:01:49]} d5 {[%clk 01:31:23]}
{[%emt 00:00:05]} 3. e3 {[%clk 01:29:46]} {[%emt 00:00:22]} Nf6 {[%clk
01:31:46]} {[%emt 00:00:05]} 4. b3 {[%clk 01:30:05]} {[%emt 00:00:12]} Bd6
{[%clk 01:31:02]} {[%emt 00:01:14]} 5. Bb2 {[%clk 01:30:26]} {[%emt 00:00:09]}
O-O {[%clk 01:31:16]} {[%emt 00:00:15]} 6. Be2 {[%clk 01:30:44]} {[%emt
00:00:12]} c6 {[%clk 01:31:21]} {[%emt 00:00:25]} 7. O-O {[%clk 01:30:54]}
{[%emt 00:00:20]} Nbd7 {[%clk 01:31:40]} {[%emt 00:00:11]} 8. Nc3 {[%clk
01:28:36]} {[%emt 00:02:48]} Qe7 {[%clk 01:32:00]} {[%emt 00:00:10]} 9. d4
{[%clk 01:28:28]} {[%emt 00:00:38]} a6 {[%clk 01:32:19]} {[%emt 00:00:10]} 10.
a4 {[%clk 01:27:16]} {[%emt 00:01:43]} Rd8 {[%clk 01:32:03]} {[%emt 00:00:46]}
11. Qc1 {[%clk 01:27:03]} {[%emt 00:00:43]} e5 {[%clk 01:31:51]} {[%emt
00:00:42]} 12. dxe5 {[%clk 01:27:16]} {[%emt 00:00:17]} Nxe5 {[%clk 01:32:18]}
{[%emt 00:00:02]} 13. cxd5 {[%clk 01:27:39]} {[%emt 00:00:08]} cxd5 {[%clk
01:32:31]} {[%emt 00:00:17]} 14. Ba3 {[%clk 01:22:13]} {[%emt 00:05:56]} Bg4
{[%clk 01:25:43]} {[%emt 00:07:17]} 15. Bxd6 {[%clk 01:14:16]} {[%emt
00:08:28]} Qxd6 {[%clk 01:25:58]} {[%emt 00:00:14]} 16. Nd4 {[%clk 01:05:41]}
{[%emt 00:09:06]} Rac8 {[%clk 01:19:52]} {[%emt 00:06:36]} 17. Qb2 {[%clk
00:55:09]} {[%emt 00:11:03]} Bxe2 {[%clk 01:12:51]} {[%emt 00:07:30]} 18. Ncxe2
{[%clk 00:55:05]} {[%emt 00:00:34]} Nfg4 {[%clk 01:09:33]} {[%emt 00:03:49]} 19.
Ng3 {[%clk 00:49:03]} {[%emt 00:06:32]} g6 {[%clk 00:50:29]} {[%emt 00:19:33]}
1/2-1/2

[Event "Senior Men Russian Championship 2022_1L"]
[Site "Olginka, Russia"]
[Date "2022.10.01"]
[Round "8.2"]
[White "Kovalev, Evgeny"]
[Black "Murzin, Lenar"]
[Result "0-1"]
[TimeControl "90min/40moves+30min/end+30sec increment per move starting from move 1"]
[BlackTitle "IM"]
[BlackFideId "4116461"]
[WhiteElo "2048"]
[BlackElo "2000"]

1. d4 {[%clk 01:30:56]} {[%emt 00:00:02]} Nf6 {[%clk 01:30:45]} {[%emt
00:00:15]} 2. Nf3 {[%clk 01:31:13]} {[%emt 00:00:15]} e6 {[%clk 01:30:56]}
{[%emt 00:00:17]} 3. g3 {[%clk 01:31:29]} {[%emt 00:00:15]} d5 {[%clk
01:30:54]} {[%emt 00:00:32]} 4. Bg2 {[%clk 01:31:50]} {[%emt 00:00:09]} Be7
{[%clk 01:31:12]} {[%emt 00:00:11]} 5. c4 {[%clk 01:32:12]} {[%emt 00:00:09]}
O-O {[%clk 01:31:24]} {[%emt 00:00:18]} 6. O-O {[%clk 01:32:35]} {[%emt
00:00:08]} dxc4 {[%clk 01:31:45]} {[%emt 00:00:10]} 7. Qc2 {[%clk 01:30:51]}
{[%emt 00:02:13]} a6 {[%clk 01:32:00]} {[%emt 00:00:15]} 8. a4 {[%clk
01:31:17]} {[%emt 00:00:05]} Bd7 {[%clk 01:32:22]} {[%emt 00:00:07]} 9. Bg5
{[%clk 01:25:04]} {[%emt 00:06:43]} Bc6 {[%clk 01:31:38]} {[%emt 00:01:13]} 10.
Nbd2 {[%clk 01:23:51]} {[%emt 00:01:43]} b5 {[%clk 01:29:45]} {[%emt 00:02:23]}
11. b3 {[%clk 01:20:10]} {[%emt 00:04:12]} cxb3 {[%clk 01:27:45]} {[%emt
00:02:30]} 12. Nxb3 {[%clk 01:20:11]} {[%emt 00:00:29]} Be4 {[%clk 01:23:50]}
{[%emt 00:04:24]} 13. Qc1 {[%clk 01:17:51]} {[%emt 00:02:52]} Bd5 {[%clk
01:11:56]} {[%emt 00:12:23]} 14. Bxf6 {[%clk 01:15:14]} {[%emt 00:03:07]} Bxf6
{[%clk 01:11:32]} {[%emt 00:00:54]} 15. Nc5 {[%clk 01:14:50]} {[%emt 00:00:55]}
Nc6 {[%clk 01:01:19]} {[%emt 00:10:42]} 16. axb5 {[%clk 01:07:28]} {[%emt
00:07:53]} axb5 {[%clk 01:01:01]} {[%emt 00:00:48]} 17. Rxa8 {[%clk 01:05:58]}
{[%emt 00:02:00]} Qxa8 {[%clk 00:59:35]} {[%emt 00:01:56]} 18. e4 {[%clk
01:00:08]} {[%emt 00:06:21]} Bc4 {[%clk 00:59:29]} {[%emt 00:00:35]} 19. Nd7
{[%clk 00:52:32]} {[%emt 00:08:05]} Bxf1 {[%clk 00:52:36]} {[%emt 00:07:23]} 20.
Bxf1 {[%clk 00:48:13]} {[%emt 00:04:49]} Rd8 {[%clk 00:44:46]} {[%emt
00:08:20]} 21. Nxf6+ {[%clk 00:39:43]} {[%emt 00:09:01]} gxf6 {[%clk 00:45:06]}
{[%emt 00:00:10]} 22. e5 {[%clk 00:37:26]} {[%emt 00:02:47]} Nxe5 {[%clk
00:40:05]} {[%emt 00:05:30]} 23. Nxe5 {[%clk 00:36:38]} {[%emt 00:01:18]} fxe5
{[%clk 00:40:19]} {[%emt 00:00:16]} 24. Bg2 {[%clk 00:36:12]} {[%emt 00:00:57]}
e4 {[%clk 00:37:15]} {[%emt 00:03:35]} 25. Qg5+ {[%clk 00:28:19]} {[%emt
00:08:23]} Kf8 {[%clk 00:37:29]} {[%emt 00:00:12]} 26. Qc5+ {[%clk 00:26:13]}
{[%emt 00:02:39]} Rd6 {[%clk 00:37:00]} {[%emt 00:01:00]} 27. Qxc7 {[%clk
00:26:05]} {[%emt 00:00:38]} Qa1+ {[%clk 00:36:35]} {[%emt 00:00:54]} 28. Bf1
{[%clk 00:26:21]} {[%emt 00:00:15]} Qxd4 {[%clk 00:36:43]} {[%emt 00:00:21]} 29.
Qb8+ {[%clk 00:26:16]} {[%emt 00:00:35]} Rd8 {[%clk 00:35:48]} {[%emt
00:01:25]} 30. Qxb5 {[%clk 00:25:56]} {[%emt 00:00:51]} e3 {[%clk 00:36:00]}
{[%emt 00:00:18]} 31. Qe2 {[%clk 00:24:40]} {[%emt 00:01:46]} exf2+ {[%clk
00:36:10]} {[%emt 00:00:20]} 32. Kg2 {[%clk 00:24:58]} {[%emt 00:00:13]} Qd5+
{[%clk 00:35:23]} {[%emt 00:01:16]} 33. Kh3 {[%clk 00:24:59]} {[%emt 00:00:29]}
Qf5+ {[%clk 00:35:07]} {[%emt 00:00:47]} 34. Kg2 {[%clk 00:23:51]} {[%emt
00:01:38]} Rd4 {[%clk 00:35:07]} {[%emt 00:00:29]} 35. Qb2 {[%clk 00:23:23]}
{[%emt 00:00:58]} Qd5+ {[%clk 00:34:19]} {[%emt 00:01:18]} 36. Kh3 {[%clk
00:23:45]} {[%emt 00:00:08]} e5 {[%clk 00:33:51]} {[%emt 00:00:59]} 37. Qa3+
{[%clk 00:21:36]} {[%emt 00:02:39]} Kg7 {[%clk 00:33:26]} {[%emt 00:00:54]} 38.
Qe3 {[%clk 00:21:46]} {[%emt 00:00:21]} h6 {[%clk 00:33:29]} {[%emt 00:00:27]}
39. Qe2 {[%clk 00:21:16]} {[%emt 00:01:00]} Qe6+ {[%clk 00:33:08]} {[%emt
00:00:50]} 40. Kg2 {[%clk 00:51:33]} {[%emt 00:00:14]} Qf5 {[%clk 01:03:18]}
{[%emt 00:00:20]} 41. h3 {[%clk 00:50:37]} {[%emt 00:01:26]} Qe4+ {[%clk
01:03:28]} {[%emt 00:00:20]} 42. Qxe4 {[%clk 00:50:49]} {[%emt 00:00:19]} Rxe4
{[%clk 01:03:51]} {[%emt 00:00:07]} 43. Kxf2 {[%clk 00:51:16]} {[%emt
00:00:03]} Rb4 {[%clk 01:04:10]} {[%emt 00:00:11]} 0-1

[Event "Senior Men Russian Championship 2022_1L"]
[Site "Olginka, Russia"]
[Date "2022.10.01"]
[Round "8.3"]
[White "Kremenietsky, Anatoly M."]
[Black "Birjukov, Sergey"]
[Result "1/2-1/2"]
[TimeControl "90min/40moves+30min/end+30sec increment per move starting from move 1"]
[WhiteTitle "IM"]
[BlackTitle "FM"]
[WhiteFideId "4103467"]
[WhiteElo "2241"]
[BlackElo "1867"]

1. d4 {[%clk 01:30:54]} {[%emt 00:00:04]} d5 {[%clk 01:30:45]} {[%emt
00:00:15]} 2. c4 {[%clk 01:31:12]} {[%emt 00:00:13]} c6 {[%clk 01:30:56]}
{[%emt 00:00:19]} 3. Nc3 {[%clk 01:31:26]} {[%emt 00:00:15]} Nf6 {[%clk
01:31:10]} {[%emt 00:00:16]} 4. cxd5 {[%clk 01:31:35]} {[%emt 00:00:22]} cxd5
{[%clk 01:31:24]} {[%emt 00:00:15]} 5. Nf3 {[%clk 01:31:54]} {[%emt 00:00:11]}
Nc6 {[%clk 01:31:22]} {[%emt 00:00:32]} 6. Bf4 {[%clk 01:32:09]} {[%emt
00:00:15]} e6 {[%clk 01:30:32]} {[%emt 00:01:20]} 7. e3 {[%clk 01:32:29]}
{[%emt 00:00:11]} a6 {[%clk 01:29:11]} {[%emt 00:01:50]} 8. Bd3 {[%clk
01:31:22]} {[%emt 00:01:37]} Be7 {[%clk 01:28:53]} {[%emt 00:00:47]} 9. O-O
{[%clk 01:31:22]} {[%emt 00:00:31]} O-O {[%clk 01:26:38]} {[%emt 00:02:44]} 10.
Ne5 {[%clk 01:31:32]} {[%emt 00:00:21]} Bd7 {[%clk 01:25:26]} {[%emt 00:01:42]}
11. Qe2 {[%clk 01:31:13]} {[%emt 00:00:49]} Rc8 {[%clk 01:24:51]} {[%emt
00:01:04]} 12. Rfc1 {[%clk 01:31:20]} {[%emt 00:00:23]} 1/2-1/2